lending/lending_fUSD_20240731
["ID","MTS","AMOUNT","RATE_DAILY","PERIOD"]
[333756104,1722453040177,-153.74,0.0001099,2]
[333756105,1722453040186,-153.74,0.0001099,2]
[333756107,1722453040196,-153.74,0.0001099,2]
[333756108,1722453040205,-153.74,0.0001099,2]
[333756109,1722453040217,-153.74,0.0001099,2]
[333756110,1722453040226,-153.74,0.0001099,2]
[333756111,1722453040236,-153.74,0.0001099,2]
[333756112,1722453040245,-153.74,0.0001099,2]
[333756113,1722453040254,-153.74,0.0001099,2]
[333756114,1722453040264,-903.2584701,0.00010997,2]
[333756115,1722453040273,-2265.0634685,0.00010998,2]
[333756116,1722453040283,-19257.989817,0.00010998,2]
[333756117,1722453040292,-460.231548,0.00010998,2]
[333756118,1722453040302,-15466.799906,0.00010998,2]
[333756119,1722453040315,-598.24,0.00010998,2]
[333756120,1722453040326,-428.61941707,0.00010998,2]
[333756121,1722453040337,-310.24010705,0.00010998,2]
[333756122,1722453040348,-10504.39771098,0.00010998,2]
[333756123,1722453040357,-2222.016184,0.00010998,2]
[333756124,1722453040367,-555.3857326,0.00010998,2]
[333756125,1722453040377,-622.2600976,0.00010999,2]
[333756126,1722453040386,-534.0,0.00011,2]
[333756127,1722453040396,-8291.35948852,0.00011,2]
[333756161,1722453041019,-842.47852763,0.00011,2]
[333756163,1722453041034,-2592.13152907,0.00011,2]
[333756165,1722453041045,-17557.47668954,0.00011,2]
[333756170,1722453041083,186.9021726,7.816e-05,2]
[333756174,1722453041109,40.66944023,7.816e-05,2]
[333756229,1722453041732,-415.87000001,0.00011,2]
[333756231,1722453041744,-925.93555543,0.00011,2]
[333756233,1722453041755,-437.89189859,0.00011,2]
[333756237,1722453041783,-76075.35550569,0.00011,2]
[333756242,1722453041822,-463.84117871,0.00011,2]
[333756244,1722453041834,-68560.45626078,0.00011,2]
[333756246,1722453041843,-1000.0,0.00011,2]
[333756248,1722453041853,-1000.0,0.00011,2]
[333756250,1722453041863,-2000.0,0.00011,2]
[333756251,1722453041872,-1000.0,0.00011,2]
[333756252,1722453041882,-1000.0,0.00011,2]
[333756253,1722453041891,-1000.0,0.00011,2]
[333756254,1722453041901,-1000.0,0.00011,2]
[333756255,1722453041911,-278923.12787764,0.00011,2]
[333756256,1722453041924,-961.27203814,0.00011,2]
[333756257,1722453041949,-2430.92170813,0.00011,2]
[333756258,1722453041962,-1399.85886565,0.00011,2]
[333756259,1722453041987,-1500.0,0.00011,2]
[333756260,1722453042245,-627.83,0.00011,2]
[333756261,1722453042277,-3415.16277144,0.00011,2]
[333756269,1722453043263,-590.9,0.00011,2]
[333756270,1722453043275,-5655.250559,0.00011,2]
[333756271,1722453043296,-678.05920822,0.00011,2]
[333756272,1722453043308,-466.32906793,0.00011,2]
[333756279,1722453046450,-2082.15278321,0.00011,2]
[333756280,1722453046462,-1981.0,0.00011,2]
[333756281,1722453046476,-323.78127671,0.00011,2]
[333756282,1722453046488,-2899.07416389,0.00011,2]
[333756283,1722453046499,-2377.93226991,0.00011,2]
[333756284,1722453046583,-398.7372248,0.00011,2]
[333756285,1722453046594,-1207.16591725,0.00011,2]
[333757447,1722453568904,-150.0,8.219e-05,2]
[333757448,1722453569134,-150.0,8.219e-05,2]
[333757449,1722453569248,-150.0,8.219e-05,2]
[333757450,1722453569366,-150.0,8.219e-05,2]
[333757451,1722453569481,-150.0,8.219e-05,2]
[333757452,1722453569527,-150.0,8.219e-05,2]
[333757453,1722453569614,-51.58,8.219e-05,2]
[333757454,1722453569635,-98.42,8.219e-05,2]
[333757455,1722453569685,-65.48,8.219e-05,2]
[333757456,1722453603810,150.0,8.219e-05,2]
[333757457,1722453603833,77.57161283,8.219e-05,2]
[333757459,1722453630612,188.0,8.219e-05,2]
[333757460,1722453646043,150.0,7.88e-05,2]
[333757461,1722453646067,150.0,7.88e-05,2]
[333757462,1722453646088,150.0,7.88e-05,2]
[333757463,1722453646110,150.0,7.88e-05,2]
[333757464,1722453646131,159.57397877,7.88e-05,2]
[333757465,1722453646156,633.11429592,7.88e-05,2]
[333757467,1722453719211,150.0,8.219e-05,2]
[333757468,1722453719233,150.0,8.219e-05,2]
[333757469,1722453719260,150.0,8.219e-05,2]
[333757470,1722453719283,150.0,8.219e-05,2]
[333757471,1722453719308,294.36570408,8.219e-05,2]
[333757472,1722453721295,227.57161283,8.219e-05,2]
[333757473,1722453750631,227.57161283,7.88e-05,2]
[333757476,1722453871579,227.57161283,7.88e-05,2]
[333757477,1722453886840,227.57161283,7.88e-05,2]
[333757481,1722453994594,205.19354868,7.88e-05,2]
[333757482,1722453994622,22.37806415,7.88e-05,2]
[333757497,1722454112092,227.57161283,7.88e-05,2]
[333757502,1722454164170,227.57161283,7.88e-05,2]
[333757518,1722454233676,-270.26587227,8.219e-05,2]
[333757519,1722454233700,-589.01412773,8.219e-05,2]
[333757520,1722454233717,-263.1918,9.903e-05,2]
[333757521,1722454233733,-542.31,9.922e-05,2]
[333757522,1722454233749,-167.42,9.941e-05,2]
[333757523,1722454233766,-1000.0,0.00010016,2]
[333757524,1722454233782,-182.27,0.00010068,2]
[333757525,1722454233798,-168.62,0.0001007,2]
[333757526,1722454233814,-150.0,0.00010378,2]
[333757527,1722454233830,-425.37,0.00010412,2]
[333757529,1722454233846,-2174.44,0.00010412,2]
[333757531,1722454233861,-150.0,0.00010428,2]
[333757534,1722454233876,-150.0,0.00010438,2]
[333757535,1722454233893,-499.99,0.00010439,2]
[333757537,1722454233908,-2544.93212557,0.00010439,2]
[333757538,1722454233934,-420.98804803,0.00010439,2]
[333757539,1722454233953,-271.05628702,0.00010439,2]
[333757540,1722454233988,-1329.28402773,0.00010439,2]
[333757541,1722454234008,-633.99173601,0.00010439,2]
[333757542,1722454234027,-771.91518853,0.00010439,2]
[333757543,1722454234058,-1769.62532086,0.00010439,2]
[333757544,1722454234096,-282.81062886,0.00010439,2]
[333757545,1722454234115,-397.82076205,0.00010439,2]
[333757546,1722454234566,-1577.56587534,0.00010439,2]
[333757547,1722454234576,-296.92,0.00010439,2]
[333757548,1722454234587,-582.21412466,0.00010439,2]
[333757549,1722454234600,-9417.78587534,0.00010439,2]
[333757550,1722454234610,-859.28,0.00010473,2]
[333757551,1722454234620,-150.0,0.000105,2]
[333757552,1722454234630,-711.98,0.000105,2]
[333757553,1722454234640,-13900.3516046,0.0001079,2]
[333757554,1722454234649,-5501.55222283,0.000108,2]
[333757555,1722454234662,-4036.76951601,0.000108,2]
[333757556,1722454234673,-3000.0,0.000108,2]
[333757559,1722454238312,-227.57161283,9.551e-05,2]
[333757560,1722454238321,-392.42838717,0.00010439,2]
[333757561,1722454238333,-363.04197205,0.00010439,2]
[333757562,1722454238386,-1151.10805314,0.00010439,2]
[333757563,1722454238403,-955.27057878,0.00010439,2]
[333757564,1722454238422,-328.92787868,0.00010439,2]
[333757565,1722454238436,-5993.12399999,0.00010439,2]
[333757566,1722454238587,-816.09913019,0.00010439,2]
[333757567,1722454238598,-2369.38612381,0.000108,2]
[333757568,1722454238610,-6867.20693735,0.000108,2]
[333757569,1722454238619,-4627.79306265,0.000108,2]
[333757570,1722454238630,-1235.47644,0.000108,2]
[333757571,1722454238641,-544.57763909,0.000108,2]
[333757572,1722454238653,-526.07957864,0.000108,2]
[333757573,1722454238892,-275.96458678,0.000108,2]
[333757574,1722454238904,-207.14049284,0.000108,2]
[333757575,1722454238914,-1401.4409,0.000108,2]
[333757576,1722454238923,-1000.0,0.000108,2]
[333757577,1722454238933,-150.0,0.000108,2]
[333757578,1722454238949,-37594.76287406,0.0001088,2]
[333757637,1722454243125,-530.49366899,9.551e-05,2]
[333757639,1722454243134,-10000.0,0.00010439,2]
[333757641,1722454243144,-38379.89866618,0.0001088,2]
[333757643,1722454243153,-153.18864,0.0001089,2]
[333757646,1722454243249,-966.82,0.0001089,2]
[333757648,1722454243258,-3604.1128,0.00010898,2]
[333757650,1722454243268,-3034.9641,0.000109,2]
[333757652,1722454243277,-100000.0,0.000109,2]
[333757653,1722454243286,-500.0,0.000109,2]
[333757654,1722454243295,-41325.52212504,0.000109,2]
[333757655,1722454243307,-656.60656736,0.000109,2]
[333757660,1722454243399,-13505.76613705,0.000109,2]
[333757663,1722454243414,-330.005,0.000109,2]
[333757666,1722454243425,-56684.49987804,0.000109,2]
[333757670,1722454243435,-330.43876955,0.000109,2]
[333757675,1722454243460,-36351.63030399,0.000109,2]
[333757689,1722454243544,-8010.51707536,0.00010439,2]
[333757692,1722454243553,-4961.94676687,0.000109,2]
[333757709,1722454243713,-2120.46047105,0.000109,2]
[333757711,1722454243725,-329.329,0.000109,2]
[333757713,1722454243737,-574.92905729,0.000109,2]
[333757716,1722454243749,-49262.14772376,0.000109,2]
[333757718,1722454243759,-1000.0,0.000109,2]
[333757720,1722454243769,-359.23954569,0.000109,2]
[333757722,1722454243779,-1000.0,0.000109,2]
[333757724,1722454243789,-150.0,0.000109,2]
[333757726,1722454243799,-150.0,0.000109,2]
[333757728,1722454243808,-150.0,0.000109,2]
[333757730,1722454243818,-7500.0,0.000109,2]
[333757732,1722454243828,-176.37316993,0.000109,2]
[333757734,1722454243838,-356.05,0.000109,2]
[333757736,1722454243848,-500.0,0.00010911,2]
[333757738,1722454243859,-500.0,0.00010912,2]
[333757740,1722454243868,-250.0,0.00010959,2]
[333757742,1722454243878,-150.0,0.00010959,2]
[333757744,1722454243888,-209.42742902,0.00010997,2]
[333757746,1722454243898,-13820.7720603,0.00010998,2]
[333757756,1722454243996,-9149.24586806,0.00010998,2]
[333757757,1722454244007,-378.703701,0.00010998,2]
[333757758,1722454244020,-4143.31,0.00010998,2]
[333757765,1722454244080,-1429.0401895,0.00010998,2]
[333757767,1722454244092,-443.4506406,0.00010998,2]
[333757770,1722454244114,-5857.59696844,0.00010998,2]
[333757772,1722454244124,-2204.49809588,0.00010998,2]
[333757774,1722454244136,-3397.11893952,0.00010998,2]
[333757776,1722454244145,-1072.7874442,0.00010998,2]
[333757778,1722454244156,-5086.74388045,0.00010999,2]
[333757779,1722454244165,-587.0,0.00011,2]
[333757781,1722454244175,-10897.62793583,0.00011,2]
[333757786,1722454244224,-633.56217276,0.00011,2]
[333757788,1722454244236,-927.77,0.00011,2]
[333757790,1722454244251,-6097.83191009,0.00011,2]
[333757792,1722454244262,-76992.20698975,0.00011,2]
[333757796,1722454244295,-345.30254868,0.00011,2]
[333757798,1722454244306,-293.80853246,0.00011,2]
[333757800,1722454244318,-1728.53770147,0.00011,2]
[333757803,1722454244330,-1383.95848256,0.00011,2]
[333757811,1722454244408,-930.552031,0.00011,2]
[333757858,1722454246572,-292.84,0.00011,2]
[333757859,1722454246584,-1651.032375,0.00011,2]
[333757860,1722454246597,-821.075,0.00011,2]
[333757861,1722454246609,-520.38152683,0.00011,2]
[333757862,1722454246621,-126771.8389927,0.00011,2]
[333757863,1722454246631,-18100.60041079,0.00011,2]
[333757864,1722454246643,-1682.65901762,0.00011,2]
[333757865,1722454246664,-521.20184298,0.00011,2]
[333757866,1722454246676,-433.50369205,0.00011,2]
[333757867,1722454246688,-721.13299994,0.00011,2]
[333757868,1722454246711,-3795.64476265,0.00011,2]
[333757869,1722454246723,-626.86484445,0.00011,2]
[333757870,1722454246737,-2020.3146244,0.00011,2]
[333757871,1722454246771,-66220.99999995,0.00011,2]
[333757872,1722454246817,-445.0,0.00010988,2]
[333757875,1722454246827,-97879.45219754,0.00011,2]
[333757887,1722454662562,152.16,0.0001337,30]
[333757898,1722455191829,152.16,0.0001337,30]
[333757942,1722455431459,-589.589,8.219e-05,2]
[333757943,1722455432414,-251.631,8.219e-05,2]
[333757944,1722455432429,-3240.71988058,9.716e-05,2]
[333757945,1722455432442,-1106.10866471,9.716e-05,2]
[333757946,1722455432455,-659.48885471,9.716e-05,2]
[333757947,1722455432465,-634.52,9.8e-05,2]
[333757948,1722455432475,-1000.0,9.8e-05,2]
[333757949,1722455432485,-167.43,9.815e-05,2]
[333757950,1722455432495,-182.27,9.949e-05,2]
[333757951,1722455432505,-346.16,9.995e-05,2]
[333757952,1722455432514,-1250.0,0.0001,2]
[333757953,1722455432524,-187.21,0.00010103,2]
[333757954,1722455432534,-150.0,0.00010219,2]
[333757955,1722455432544,-421.32019395,0.00010247,2]
[333757956,1722455432556,-108.95980605,0.00010247,2]
[333757957,1722455432566,-150.0,0.00010247,2]
[333757958,1722455432575,-150.0,0.00010247,2]
[333757959,1722455432585,-527.03652389,0.00010247,2]
[333757960,1722455432598,-3.24347611,0.00010247,2]
[333757961,1722455432607,-150.0,0.00010247,2]
[333757962,1722455432617,-150.0,0.00010247,2]
[333757963,1722455432627,-150.0,0.00010247,2]
[333757964,1722455432636,-530.28,0.00010247,2]
[333757965,1722455432646,-150.0,0.00010247,2]
[333757966,1722455432658,-530.28,0.00010247,2]
[333757967,1722455432676,-150.0,0.00010247,2]
[333757968,1722455432685,-150.0,0.00010247,2]
[333757969,1722455432694,-229.79,0.00010247,2]
[333757970,1722455432703,-150.0,0.00010247,2]
[333757971,1722455432713,-150.0,0.00010247,2]
[333757972,1722455432723,-150.0,0.00010247,2]
[333757973,1722455432733,-150.0,0.00010247,2]
[333757974,1722455432742,-150.0,0.00010247,2]
[333757975,1722455432752,-604.40517486,0.0001045,2]
[333757976,1722455432761,-841.22,0.00010467,2]
[333757977,1722455432770,-451.28,0.00010478,2]
[333757978,1722455432780,-353.22,0.00010478,2]
[333757979,1722455432790,-1723.2814163,0.000105,2]
[333757980,1722455432801,-707.07731665,0.000105,2]
[333757981,1722455432812,-202.52480731,0.000105,2]
[333757982,1722455432822,-427.47433483,0.00010567,2]
[333757983,1722455432837,-6586.58,0.00010567,2]
[333757984,1722455432849,-371.6925449,0.00010567,2]
[333757985,1722455432947,-12046.49247876,0.00010567,2]
[333757986,1722455432984,-595.5625,0.00010567,2]
[333757987,1722455432997,-2046.06,0.00010567,2]
[333757988,1722455433033,-16739.13814151,0.00010567,2]
[333757989,1722455433043,-1226.3264,0.000107,2]
[333757990,1722455433053,-150.0,0.000107,2]
[333757991,1722455433063,-662.3303,0.00010798,2]
[333757992,1722455433072,-849.7749,0.00010798,2]
[333757993,1722455433082,-51595.7064,0.000108,2]
[333757994,1722455433092,-20923.7104,0.000108,2]
[333757995,1722455433102,-182.7281,0.000108,2]
[333757996,1722455433111,-150.0,0.000108,2]
[333757997,1722455433121,-150.0,0.000108,2]
[333757998,1722455433131,-530.28,0.000108,2]
[333757999,1722455433141,-150.0,0.000108,2]
[333758000,1722455433150,-3000.0,0.0001089,2]
[333758001,1722455433174,-347.542,0.00010898,2]
[333758002,1722455433184,-1574.07831684,0.00010899,2]
[333758003,1722455433195,-1574.07831681,0.00010899,2]
[333758004,1722455433204,-1574.07831681,0.00010899,2]
[333758005,1722455433214,-1574.07831681,0.00010899,2]
[333758006,1722455433224,-1574.07831681,0.00010899,2]
[333758007,1722455433234,-1574.07831681,0.00010899,2]
[333758008,1722455433244,-1574.07831681,0.00010899,2]
[333758009,1722455433254,-1574.07831681,0.000109,2]
[333758010,1722455433264,-1574.07831681,0.000109,2]
[333758011,1722455433273,-1012.93876,0.000109,2]
[333758012,1722455433283,-161.23799701,0.000109,2]
[333758013,1722455433293,-308.7597,0.000109,2]
[333758014,1722455433303,-1574.07831681,0.000109,2]
[333758015,1722455433312,-7500.0,0.000109,2]
[333758016,1722455433322,-176.96034438,0.000109,2]
[333758017,1722455433332,-500.0,0.00010912,2]
[333758018,1722455433342,-1667.86,0.00010932,2]
[333758019,1722455433352,-200.0,0.00010959,2]
[333758020,1722455433363,-250.0,0.00010959,2]
[333758021,1722455433373,-500.0,0.00010991,2]
[333758022,1722455433383,-931.92338896,0.00010998,2]
[333758023,1722455433431,-337.835,0.00010998,2]
[333758024,1722455433456,-472.07725986,0.00010998,2]
[333758025,1722455433469,-3727.30427163,0.00010998,2]
[333758026,1722455433481,-797.37400748,0.00010998,2]
[333758027,1722455433493,-819.28,0.00010998,2]
[333758028,1722455433505,-401.9262313,0.00010998,2]
[333758029,1722455433518,-379.33536327,0.00010998,2]
[333758030,1722455433528,-2671.4021504,0.00010998,2]
[333758031,1722455433538,-870.55794881,0.00010998,2]
[333758032,1722455433550,-478.1956183,0.00010998,2]
[333758033,1722455433604,-776.00476389,0.00010998,2]
[333758034,1722455433614,-1165.9287665,0.00010998,2]
[333758035,1722455433624,-1353.25050961,0.00010998,2]
[333758036,1722455433636,-3423.6,0.00010998,2]
[333758037,1722455433647,-1414.36815207,0.00010998,2]
[333758038,1722455433671,-13517.25894804,0.00010998,2]
[333758041,1722455437396,-59818.79067528,0.00010998,2]
[333758042,1722455437409,-927.3694137,0.00010998,2]
[333758043,1722455437420,-153.58758173,0.00010999,2]
[333758044,1722455437430,-735.0,0.00011,2]
[333758045,1722455437440,-4077.24744349,0.00011,2]
[333758047,1722455438062,-1275.15327242,0.00011,2]
[333758051,1722455438080,-1971.6277318,0.00011,2]
[333758054,1722455438093,-5391.9202173,0.00011,2]
[333758056,1722455438108,-2962.420924,0.00011,2]
[333758059,1722455438121,-3576.33989265,0.00011,2]
[333758061,1722455438134,-13133.12,0.00011,2]
[333758063,1722455438147,-7440.2661436,0.00011,2]
[333758065,1722455438164,-32837.23756778,0.00011,2]
[333758068,1722455438180,-2637.06102234,0.00011,2]
[333758223,1722455439578,-13608.2,0.00011,2]
[333758239,1722455439736,-44066.31434281,0.00011,2]
[333758241,1722455439747,-20664.98920604,0.00011,2]
[333758243,1722455439756,-550373.26027434,0.00011,2]
[333758253,1722455439855,-7871.83266382,0.00011,2]
[333758256,1722455439880,-1249.66829999,0.00011,2]
[333758594,1722455443569,-1638.82678995,0.000108,2]
[333758599,1722455443612,-4027.20411005,0.000108,2]
[333758601,1722455443622,-99563.21072217,0.00011,2]
[333758603,1722455443632,-380.20706292,0.00011,2]
[333758606,1722455443654,-13207.11049876,0.00011,2]
[333758608,1722455443668,-1124.74788714,0.00011,2]
[333758612,1722455443691,-40142.06535542,0.00011,2]
[333758614,1722455443701,-18604.99964912,0.00011,2]
[333758615,1722455443710,-6701.69470547,0.00011,2]
[333758616,1722455443721,-6686.38432214,0.00011,2]
[333758643,1722455445569,-599.76979766,0.000109,2]
[333758644,1722455445579,-1040.98906734,0.00011,2]
[333758645,1722455445598,-1707.88238777,0.00011,2]
[333758646,1722455445611,-827.87841086,0.00011,2]
[333758647,1722455445623,-3303.57095399,0.00011,2]
[333758648,1722455445634,-604.40517486,0.00011,2]
[333758649,1722455445693,-6646.64,0.00011,2]
[333758650,1722455445705,-718.71157771,0.00011,2]
[333758651,1722455445751,-657100.0,0.00011,2]
[333758652,1722455445762,-410.00625,0.00011,2]
[333758654,1722455445910,-270853.98202592,0.00011,2]
[333758656,1722455445928,-30493.15820163,0.00011,2]
[333758658,1722455445940,-3540.2212026,0.00011,2]
[333758777,1722455591571,500.0,0.00027,120]
[333758778,1722455594249,1000.0,0.00027,120]
[333758829,1722455655214,152.16,0.0001337,30]
[333758874,1722455752860,-2756.7848,0.000107,2]
[333758875,1722455752881,-4395.11384839,0.0001079,2]
[333758876,1722455752903,-300.0,0.00010799,2]
[333758877,1722455752928,-4808.2539,0.000108,2]
[333758878,1722455752949,-11313.05498942,0.000108,2]
[333758879,1722455752972,-150.0,0.00010897,2]
[333758880,1722455752993,-1000.0,0.00010898,2]
[333758881,1722455753017,-1502.3093,0.00010898,2]
[333758882,1722455753038,-10974.48316219,0.00010898,2]
[333758888,1722455772476,-2000.0,0.00010194,2]
[333758889,1722455772500,-3000.0,0.0001089,2]
[333758890,1722455772525,-12856.0,0.0001089,2]
[333758891,1722455772550,-300.0,0.00010897,2]
[333758892,1722455772575,-300.0,0.00010897,2]
[333758893,1722455772604,-24028.95463781,0.00010898,2]
[333758894,1722455772632,-500.0,0.00010898,2]
[333758895,1722455772656,-7500.0,0.000109,2]
[333758896,1722455772680,-3991.18446678,0.000109,2]
[333758897,1722455772705,-159.40595947,0.000109,2]
[333758898,1722455772730,-4894.758471,0.000109,2]
[333758899,1722455772754,-161.237997,0.000109,2]
[333758900,1722455772780,-1112.98096882,0.000109,2]
[333758901,1722455772804,-1299.5345,0.000109,2]
[333758902,1722455772828,-9310.2162,0.000109,2]
[333758903,1722455772859,-716.28764572,0.000109,2]
[333758904,1722455772885,-2825.48979996,0.000109,2]
[333758905,1722455772910,-500.0,0.00010912,2]
[333758906,1722455772938,-2189.4195856,0.00010997,2]
[333758907,1722455772963,-7612.6528493,0.00010997,2]
[333758908,1722455772988,-1141.6680581,0.00010997,2]
[333758909,1722455773013,-746.7870862,0.00010997,2]
[333758910,1722455773039,-35632.12953907,0.00010997,2]
[333758912,1722455774639,-456.36385471,0.000109,2]
[333758913,1722455774667,-14936.33571223,0.00010997,2]
[333758914,1722455774692,-217.6672489,0.00010997,2]
[333758915,1722455774716,-589.6801057,0.00010997,2]
[333758916,1722455774741,-4617.93432456,0.00010997,2]
[333758917,1722455774767,-299.35069514,0.00010999,2]
[333758918,1722455774791,-662.0,0.00011,2]
[333758919,1722455774818,-100999.37582359,0.00011,2]
[333758930,1722455790727,-4296.03,0.00010318,2]
[333759013,1722456121652,152.16,0.0001337,30]
[333759070,1722456631774,-828.65,8.219e-05,2]
[333759071,1722456631784,-1000.0,9.811e-05,2]
[333759072,1722456631794,-250.0,9.86e-05,2]
[333759073,1722456631804,-192.14261377,9.861e-05,2]
[333759074,1722456631814,-300.0,9.868e-05,2]
[333759075,1722456631823,-9023.4107823,9.869e-05,2]
[333759076,1722456631835,-6966.1492177,9.869e-05,2]
[333759077,1722456631847,-187.21,9.905e-05,2]
[333759078,1722456631856,-192.14261377,9.905e-05,2]
[333759079,1722456631866,-2000.0,9.917e-05,2]
[333759080,1722456631876,-4365.45,9.917e-05,2]
[333759081,1722456631886,-1250.0,0.0001,2]
[333759082,1722456631895,-468.17,0.0001002,2]
[333759083,1722456631905,-194.76,0.00010056,2]
[333759084,1722456631915,-200.0,0.00010075,2]
[333759085,1722456631925,-178.97,0.00010237,2]
[333759086,1722456631934,-318.57,0.00010382,2]
[333759087,1722456631944,-9836.3548,0.00010432,2]
[333759088,1722456631955,-828.65,0.00010472,2]
[333759089,1722456631965,-150.0,0.000108,2]
[333759090,1722456631975,-420.0,0.00010855,2]
[333759091,1722456631985,-10243.8914,0.00010897,2]
[333759092,1722456631995,-965.9951,0.00010897,2]
[333759093,1722456632005,-592.94,0.000109,2]
[333759094,1722456632015,-2675.9042,0.000109,2]
[333759095,1722456632025,-4789.9298,0.000109,2]
[333759096,1722456632034,-290.4654,0.000109,2]
[333759097,1722456632044,-322.9445,0.000109,2]
[333759099,1722456632054,-151.7286345,0.000109,2]
[333759100,1722456632065,-858.50132087,0.000109,2]
[333759101,1722456632075,-858.50132084,0.00010912,2]
[333759102,1722456632084,-858.50132084,0.00010923,2]
[333759103,1722456632098,-858.50132084,0.00010935,2]
[333759104,1722456632107,-858.50132084,0.00010947,2]
[333759105,1722456632117,-10186.80000099,0.0001095,2]
[333759106,1722456632128,-858.50132084,0.00010958,2]
[333759107,1722456632137,-250.0,0.00010959,2]
[333759108,1722456632147,-858.50132084,0.0001097,2]
[333759109,1722456632156,-858.50132084,0.00010982,2]
[333759110,1722456632166,-155.0,0.0001099,2]
[333759111,1722456632175,-858.50132084,0.00010993,2]
[333759112,1722456632189,-1486.5393936,0.00010997,2]
[333759113,1722456632199,-6523.2425115,0.00010998,2]
[333759114,1722456632208,-618.8245473,0.00010998,2]
[333759115,1722456632218,-1620.9063752,0.00010998,2]
[333759116,1722456632229,-22700.4471847,0.00010998,2]
[333759117,1722456632238,-27990.9294006,0.00010998,2]
[333759118,1722456632248,-182.87920874,0.00010998,2]
[333759119,1722456632257,-299.35069514,0.00010999,2]
[333759120,1722456632270,-744.0,0.00011,2]
[333759121,1722456632279,-506309.20957562,0.00011,2]
[333759122,1722456632325,-8610.4235858,0.00011,2]
[333759123,1722456632336,-266.95294903,0.00011,2]
[333759124,1722456632351,-327.53714,0.00011,2]
[333759125,1722456632390,-5000.40419094,0.00011,2]
[333759126,1722456632417,-564919.1875349,0.00011,2]
[333759127,1722456632428,-1961.61307,0.00011,2]
[333759128,1722456632441,-88628.95127736,0.00011,2]
[333759129,1722456632461,-968.08911481,0.00011,2]
[333759130,1722456632472,-679.73,0.00011,2]
[333759131,1722456632533,-4469.139096,0.00011,2]
[333759132,1722456632586,-6599.90554356,0.00011,2]
[333759133,1722456632603,-3269.35,0.00011,2]
[333759134,1722456632614,-2280.57713759,0.00011,2]
[333759136,1722456637599,-6516.51,0.00011,2]
[333759320,1722456639887,-1766.0,0.00011,2]
[333759323,1722456639899,-2180.5836,0.00011,2]
[333759325,1722456639911,-1506.54650978,0.00011,2]
[333759327,1722456639923,-300.0,0.00011,2]
[333759329,1722456639935,-5255.92241343,0.00011,2]
[333759331,1722456639947,-1500.90477222,0.00011,2]
[333759333,1722456639959,-2614.72,0.00011,2]
[333759337,1722456639972,-313.999999,0.00011,2]
[333759339,1722456639985,-8344.61681442,0.00011,2]
[333759341,1722456639997,-327.40327015,0.00011,2]
[333759343,1722456640010,-916.52144178,0.00011,2]
[333759345,1722456640023,-302.6099945,0.00011,2]
[333759348,1722456640035,-366.52126205,0.00011,2]
[333759350,1722456640046,-1291.06,0.00011,2]
[333759452,1722456641073,-327.01696173,0.00011,2]
[333759454,1722456641085,-48345.31276238,0.00011,2]
[333759456,1722456641099,-25549.81901672,0.00011,2]
[333759461,1722456641133,-51523.13944813,0.00011,2]
[333759463,1722456641143,-86037.20885643,0.00011,2]
[333759465,1722456641155,-517.04614379,0.00011,2]
[333759467,1722456641167,-1330.87340116,0.00011,2]
[333759469,1722456641179,-876.83049449,0.00011,2]
[333759476,1722456641245,-3781.36129639,0.00011,2]
[333759478,1722456641256,-23538.13631104,0.00011,2]
[333759518,1722456641741,-7231.66009916,0.00011,2]
[333759521,1722456641762,-253.44497898,0.00011,2]
[333759523,1722456641774,-345.91147168,0.00011,2]
[333759530,1722456641841,-2644.94176012,0.00011,2]
[333759532,1722456641858,-2843.51779656,0.00011,2]
[333759651,1722456643316,-2629.05468839,0.00011,2]